bitfinex/quotes_BTCUSD_20230117
["timestamp","ask_amount","ask_price","bid_price","bid_amount"]
[1673923688777,0.14210641,21093.0,21092.0,0.774104]
[1673923689041,0.35526967,21093.0,21092.0,0.948217]
[1673923689306,0.35526967,21093.0,21092.0,1.248217]
[1673923689307,0.14210641,21093.0,21092.0,1.248217]
[1673923690236,0.35526967,21094.0,21092.0,1.248217]
[1673923690709,0.14210641,21093.0,21092.0,1.248217]
[1673923690930,0.14210641,21093.0,21092.0,1.341217]
[1673923691146,0.21316326,21094.0,21092.0,1.341217]
[1673923691147,0.14210641,21094.0,21092.0,1.248217]
[1673923691366,0.14210641,21094.0,21093.0,0.138159]
[1673923691588,0.35526967,21094.0,21093.0,1.24818]
[1673923692244,0.14210641,21094.0,21093.0,1.24818]
[1673923692938,0.14210641,21094.0,21093.0,1.386338]
[1673923693161,0.21316326,21095.0,21093.0,1.386338]
[1673923693162,0.35526967,21095.0,21093.0,1.24818]
[1673923693387,0.14210641,21096.0,21094.0,0.138151]
[1673923693602,0.35526967,21097.0,21095.0,1.560276]
[1673923693829,0.63959869,21099.0,21095.0,1.422135]
[1673923693830,0.35526967,21098.0,21095.0,1.422135]
[1673923694205,0.14210641,21096.0,21093.0,0.94816]
[1673923694490,0.28976326,21096.0,21094.0,0.093]
[1673923694714,0.14206648,21096.0,21093.0,0.47407]
[1673923694975,0.14206648,21096.0,21095.0,0.068]
[1673923695228,0.49738834,21096.0,21094.0,0.474065]
[1673923695481,0.67719701,21095.0,21094.0,0.474065]
[1673923695725,0.14202475,21095.0,21094.0,0.474065]
[1673923695988,0.14202475,21095.0,21093.0,0.47407]
[1673923696236,0.35518801,21095.0,21094.0,0.07933]
[1673923696571,0.14202475,21097.0,21094.0,0.07533]
[1673923696766,0.14202475,21096.0,21094.0,0.642398]
[1673923697026,0.14202475,21096.0,21093.0,0.47409]
[1673923697274,0.35518801,21096.0,21093.0,0.56709]
[1673923697526,0.14202475,21095.0,21093.0,0.47409]
[1673923698040,0.14202475,21095.0,21092.0,0.474154]
[1673923698317,0.35518801,21095.0,21093.0,0.093]
[1673923698556,0.14202475,21095.0,21093.0,0.093]
[1673923698800,0.14202475,21096.0,21094.0,0.138149]
[1673923699054,0.14202475,21096.0,21094.0,0.3]
[1673923699307,0.35518801,21097.0,21095.0,0.612186]
[1673923699555,0.14202475,21097.0,21095.0,0.94809]
[1673923700063,0.35518801,21097.0,21095.0,0.94809]
[1673923700310,0.35518801,21098.0,21095.0,0.94809]
[1673923700564,0.35518801,21098.0,21095.0,1.20007592]
[1673923700565,0.14202475,21098.0,21095.0,1.20007592]
[1673923700809,0.88543302,21099.0,21096.0,0.3]
[1673923701072,0.67226976,21099.0,21097.0,0.948002]
[1673923701325,0.14202475,21098.0,21097.0,0.948002]
[1673923702144,0.14202475,21099.0,21097.0,0.948002]
[1673923702398,0.37557478,21100.0,21097.0,0.948002]
[1673923702638,0.14202475,21099.0,21097.0,1.041002]
[1673923702965,0.14202475,21099.0,21097.0,0.948002]
[1673923702966,0.35518801,21099.0,21097.0,0.948002]
[1673923703147,0.35518801,21099.0,21097.0,1.016002]
[1673923703405,0.14202475,21099.0,21097.0,0.948002]
[1673923703662,0.14202475,21099.0,21097.0,1.041002]
[1673923703911,0.37557478,21100.0,21097.0,0.948002]
[1673923704167,0.37557478,21100.0,21097.0,1.041002]
[1673923704416,0.16241152,21100.0,21097.0,1.041002]
[1673923705193,0.14202475,21099.0,21097.0,0.948062]
[1673923705466,0.16241152,21100.0,21097.0,1.041062]
[1673923705698,0.02038677,21100.0,21098.0,0.3]
[1673923705966,0.02038677,21100.0,21099.0,0.473956]
[1673923706719,0.02038677,21100.0,21099.0,1.247912]
[1673923706975,0.02038677,21100.0,21099.0,1.04081715]
[1673923707482,0.02038677,21100.0,21099.0,1.10881715]
[1673923708229,0.02038677,21100.0,21099.0,1.24781715]
[1673923708497,0.02038677,21100.0,21099.0,1.33981715]
[1673923708750,0.02038677,21100.0,21099.0,0.94781715]
[1673923709011,0.02038677,21100.0,21099.0,1.34081715]
[1673923709352,0.02038677,21100.0,21099.0,1.24781715]
[1673923709508,0.02038677,21100.0,21099.0,1.03981715]
[1673923709782,0.02038677,21100.0,21099.0,0.092]
[1673923710015,0.49327577,21100.0,21097.0,0.473985]
[1673923710267,0.322009,21099.0,21097.0,0.473985]
[1673923710514,0.322009,21098.0,21097.0,0.473985]
[1673923710768,0.09648677,21100.0,21099.0,0.092]
[1673923710769,0.23851152,21100.0,21099.0,0.092]
[1673923711012,0.09648677,21100.0,21097.0,0.473985]
[1673923711259,0.322009,21099.0,21097.0,0.473985]
[1673923711510,0.322009,21098.0,21097.0,0.473985]
[1673923711761,0.09648677,21100.0,21096.0,0.474003]
[1673923712029,0.09648677,21100.0,21097.0,0.092]
[1673923712296,0.322009,21099.0,21096.0,0.474003]
[1673923712552,0.322009,21098.0,21097.0,0.093]
[1673923712810,0.322009,21098.0,21093.0,0.7452]
[1673923712811,0.398109,21098.0,21093.0,0.474078]
[1673923713120,0.076,21094.0,21091.0,0.05401676]
[1673923713321,0.51273495,21093.0,21092.0,0.7]
[1673923713595,0.26672595,21094.0,21091.0,0.05401676]
[1673923714338,0.076,21094.0,21091.0,0.05401676]
[1673923715095,0.0766,21092.0,21091.0,0.05401676]
[1673923715353,0.398609,21092.0,21091.0,0.05401676]
[1673923716128,0.0766,21092.0,21091.0,0.05401676]
[1673923716384,0.0766,21092.0,21091.0,0.05407676]
[1673923716385,0.398609,21092.0,21091.0,0.05407676]
[1673923716987,0.398609,21092.0,21091.0,0.12207676]
[1673923717441,0.398609,21092.0,21091.0,0.12218373]
[1673923717660,0.398609,21092.0,21091.0,0.12207676]
[1673923718448,0.398609,21092.0,21091.0,0.12201676]
[1673923718449,0.322009,21092.0,21091.0,0.12201676]
[1673923718698,0.0766,21094.0,21091.0,0.12201676]
[1673923719221,0.322009,21093.0,21091.0,0.12201676]
[1673923719474,0.322009,21092.0,21091.0,0.12201676]
[1673923719991,0.322009,21092.0,21091.0,0.05401676]
[1673923720237,0.322009,21092.0,21091.0,0.05801676]
[1673923720486,0.322009,21092.0,21091.0,0.05401676]
[1673923720764,0.322009,21092.0,21091.0,0.12201676]
[1673923723102,1.54298915,21092.0,21091.0,0.12201676]
[1673923723389,2.2442269,21092.0,21091.0,0.12201676]
[1673923723616,2.2442269,21092.0,21091.0,0.028542]
[1673923723617,2.56126334,21092.0,21091.0,0.028542]
[1673923723882,2.56024948,21092.0,21091.0,0.028542]
[1673923724396,2.19481664,21092.0,21091.0,0.028542]
[1673923724722,2.83499803,21092.0,21089.0,6e-05]
[1673923724917,0.1524,21090.0,21089.0,6e-05]
[1673923725200,0.948567,21090.0,21089.0,6e-05]
[1673923726740,0.988567,21090.0,21089.0,0.00506]
[1673923726994,0.948567,21090.0,21089.0,6e-05]
[1673923727262,0.948567,21090.0,21089.0,0.00506]
[1673923727263,0.438309,21090.0,21089.0,0.00506]
[1673923727514,0.438309,21090.0,21089.0,6e-05]
[1673923727515,0.398309,21090.0,21089.0,6e-05]
[1673923728792,0.438309,21090.0,21089.0,0.00506]
[1673923729065,0.398309,21090.0,21089.0,6e-05]
[1673923729576,0.1163,21090.0,21089.0,0.00506]
[1673923730606,0.1163,21090.0,21089.0,0.005]
[1673923730882,0.1163,21090.0,21089.0,0.08033]
[1673923731160,0.04,21090.0,21089.0,0.55451]
[1673923731420,0.04,21090.0,21089.0,0.692706]
[1673923731684,0.04,21090.0,21089.0,1.466886]
[1673923732735,0.04,21090.0,21089.0,1.166886]
[1673923733030,0.04,21090.0,21089.0,0.47918]
[1673923733262,0.03778687,21090.0,21089.0,0.47918]
[1673923738713,0.03778687,21090.0,21089.0,0.005]
[1673923745089,0.35979587,21090.0,21089.0,0.005]
[1673923746382,0.03778687,21090.0,21089.0,0.005]
[1673923747586,0.43589587,21090.0,21089.0,0.005]
[1673923748381,0.11388687,21090.0,21089.0,0.005]
[1673923748646,0.35979587,21090.0,21089.0,0.005]
[1673923750185,0.35741914,21090.0,21089.0,0.005]
[1673923751207,0.35504241,21090.0,21089.0,0.005]
[1673923751469,0.57330584,21090.0,21089.0,0.005]
[1673923751730,1.3856215,21090.0,21089.0,0.005]
[1673923751993,1.34523187,21090.0,21089.0,0.005]
[1673923752293,1.13273673,21090.0,21086.0,0.474247]
[1673923752509,0.398609,21089.0,21086.0,0.474247]
[1673923752766,0.322009,21088.0,21086.0,0.474247]
[1673923753031,0.322009,21087.0,21086.0,0.474247]
[1673923753286,0.0766,21089.0,21086.0,0.474247]
[1673923753549,0.21843632,21089.0,21086.0,0.474247]
[1673923754052,0.322009,21088.0,21085.0,0.474313]
[1673923754302,0.19072595,21088.0,21086.0,0.049]
[1673923754564,0.43493146,21089.0,21086.0,0.049]
[1673923754853,0.0766,21087.0,21086.0,0.049]
[1673923755116,0.398609,21087.0,21085.0,6e-05]
[1673923755390,0.398609,21087.0,21085.0,0.04906]
[1673923755391,0.322009,21086.0,21085.0,0.04906]
[1673923755710,0.398009,21086.0,21085.0,0.04906]
[1673923756249,0.398009,21086.0,21085.0,6e-05]
[1673923756509,0.39743836,21086.0,21085.0,6e-05]
[1673923757025,0.43543836,21086.0,21085.0,0.00506]
[1673923757533,0.57727468,21086.0,21085.0,0.00506]
[1673923758103,0.43543836,21086.0,21085.0,0.00506]
[1673923758615,0.360009,21086.0,21085.0,0.00506]
[1673923758885,0.50184532,21086.0,21085.0,0.00506]
[1673923759397,0.360009,21086.0,21085.0,0.00506]
[1673923762248,1.01931443,21086.0,21085.0,0.00506]
[1673923762497,1.86705757,21086.0,21085.0,0.00506]
[1673923762752,1.72522125,21086.0,21085.0,0.00506]
[1673923763350,2.00856169,21086.0,21085.0,0.00506]
[1673923763543,2.19946925,21086.0,21085.0,0.00506]
[1673923763773,2.19946925,21086.0,21085.0,0.005]
[1673923764056,2.48280969,21086.0,21085.0,0.005]
[1673923764268,0.095,21085.0,21084.0,0.00270901]
[1673923764530,0.493609,21085.0,21084.0,0.00270901]
[1673923764781,0.967879,21085.0,21084.0,0.00270901]
[1673923765549,0.493609,21085.0,21084.0,0.00270901]
[1673923765800,0.095,21085.0,21084.0,0.07115901]
[1673923766057,0.095,21085.0,21084.0,0.54545201]
[1673923766311,0.119,21085.0,21084.0,0.54745201]
[1673923767145,0.1166227,21085.0,21084.0,1.02174501]
[1673923768082,0.1142454,21085.0,21084.0,1.32174501]
[1673923768330,0.1142454,21085.0,21084.0,1.45998801]
[1673923769076,0.1118681,21085.0,21084.0,1.45998801]
[1673923770084,0.1094908,21085.0,21084.0,1.45998801]
[1673923771082,0.1071135,21085.0,21084.0,1.45998801]
[1673923772105,0.1047362,21085.0,21084.0,1.45998801]
[1673923773115,0.1023589,21085.0,21084.0,1.45998801]
[1673923773871,0.1023589,21085.0,21084.0,1.45992801]
[1673923774152,0.1023589,21085.0,21084.0,2.88112859]
[1673923774153,0.0999816,21085.0,21084.0,2.88112859]
[1673923774402,0.14187633,21092.0,21085.0,0.03858405]
[1673923774733,0.21249514,21093.0,21088.0,0.0759]
[1673923774734,0.14187633,21093.0,21088.0,0.0759]
[1673923774927,0.14187633,21093.0,21089.0,0.138198]
[1673923775179,0.35437147,21094.0,21089.0,1.248338]
[1673923775452,0.35437147,21094.0,21089.0,0.948338]
[1673923775689,0.14187633,21093.0,21089.0,0.948338]
[1673923775942,0.54393529,21093.0,21089.0,0.948338]
[1673923776967,0.011,21093.0,21089.0,0.948338]
[1673923777226,0.011,21093.0,21090.0,0.138185]
[1673923777493,0.14187633,21094.0,21089.0,0.72655892]
[1673923777745,0.33260228,21094.0,21091.0,0.94827]
[1673923778020,0.94650931,21095.0,21091.0,0.94827]
[1673923778021,0.002,21093.0,21091.0,0.94827]
[1673923778590,0.002,21093.0,21092.0,0.13817]
[1673923779034,0.002,21093.0,21092.0,0.474113]
[1673923779542,0.002,21093.0,21092.0,0.47421996]
[1673923780079,0.003,21093.0,21092.0,0.53421996]
[1673923780592,0.003,21093.0,21092.0,0.67238796]
[1673923781882,0.003,21093.0,21092.0,0.53427996]
[1673923782166,0.003,21093.0,21092.0,0.06006]
[1673923782707,0.325009,21093.0,21092.0,0.06006]
[1673923783304,0.003,21093.0,21092.0,0.06006]
[1673923784091,0.003,21093.0,21092.0,1.008286]
[1673923784359,0.003,21093.0,21092.0,1.146454]
[1673923784643,0.003,21093.0,21092.0,1.446454]
[1673923786178,0.0006236,21093.0,21092.0,1.490224]
[1673923786945,0.0006236,21093.0,21092.0,1.190224]
[1673923787479,0.0006236,21093.0,21092.0,1.490224]
[1673923787761,0.0006236,21093.0,21092.0,1.566824]
[1673923788013,0.0006236,21093.0,21092.0,1.490224]
[1673923788257,5.9e-07,21093.0,21092.0,1.490224]
[1673923788787,5.9e-07,21093.0,21092.0,1.190224]
[1673923789060,5.9e-07,21093.0,21092.0,1.190164]
[1673923789284,0.01897373,21095.0,21092.0,1.190164]
[1673923789285,0.01659815,21095.0,21092.0,1.190164]
[1673923789529,0.01659815,21095.0,21092.0,1.051996]
[1673923790040,0.01422198,21095.0,21093.0,0.138158]
[1673923790345,0.01422198,21095.0,21094.0,1.086286]
[1673923790564,0.01422198,21095.0,21094.0,1.63857059]
[1673923790817,0.01422198,21095.0,21094.0,1.63837504]
[1673923791104,0.01184581,21095.0,21094.0,1.63837504]
[1673923792107,0.02547064,21095.0,21094.0,1.63837504]
[1673923792360,0.00947064,21095.0,21094.0,1.63837504]
[1673923792607,0.02547064,21095.0,21094.0,1.64432336]
[1673923792922,0.02547064,21095.0,21094.0,1.392286]
[1673923793124,0.02309447,21095.0,21094.0,1.392286]
[1673923793388,0.02309447,21095.0,21094.0,1.092286]
[1673923794185,0.0207183,21095.0,21094.0,0.954196]
[1673923794644,0.0207183,21095.0,21094.0,0.480128]
[1673923794897,0.0207183,21095.0,21094.0,0.00606]
[1673923797238,0.018343,21095.0,21094.0,0.00606]
[1673923798010,0.01616846,21095.0,21094.0,0.00606]
[1673923798256,0.01616846,21095.0,21094.0,0.07451]
[1673923798771,0.01616846,21095.0,21094.0,0.00606]
[1673923799000,0.01616846,21095.0,21094.0,0.006]
[1673923799298,0.01379229,21095.0,21094.0,0.006]
[1673923799778,0.33580129,21095.0,21094.0,0.006]
[1673923801044,0.01379229,21095.0,21094.0,0.006]
[1673923801577,0.01379229,21095.0,21094.0,0.005735]
[1673923803427,0.33580129,21095.0,21094.0,0.005735]
[1673923806285,0.47767762,21095.0,21094.0,0.005735]
[1673923807605,2.21542339,21095.0,21094.0,0.005735]
[1673923807867,1.82893173,21095.0,21094.0,0.005735]
[1673923808137,2.1252264,21095.0,21094.0,0.005735]
[1673923808433,2.40878987,21095.0,21094.0,0.005735]
[1673923808673,1.72915476,21095.0,21094.0,0.005735]
[1673923808945,2.40891165,21095.0,21094.0,0.005735]
[1673923809204,2.12534818,21095.0,21094.0,0.00058999]
[1673923810066,2.12546642,21095.0,21094.0,0.00058999]
[1673923810321,1.77098843,21095.0,21094.0,0.00058999]
[1673923811961,2.07098843,21095.0,21094.0,0.00058999]
[1673923812217,2.49763103,21095.0,21094.0,0.00058999]
[1673923812462,2.19763103,21095.0,21094.0,0.00058999]
[1673923812714,1.77098843,21095.0,21094.0,0.00058999]
[1673923813969,2.19763103,21095.0,21094.0,0.00058999]
[1673923815012,1.77098843,21095.0,21094.0,0.00058999]
[1673923815528,2.12575173,21095.0,21094.0,0.06903999]
[1673923815785,0.69054237,21095.0,21094.0,0.06903999]
[1673923816093,0.36853337,21095.0,21094.0,0.06903999]
[1673923816367,0.01141612,21095.0,21094.0,0.06903999]
[1673923816895,0.01141612,21095.0,21094.0,1.45532499]
[1673923817486,0.00903995,21095.0,21094.0,1.45532499]
[1673923818288,0.00666378,21095.0,21094.0,1.45532499]
[1673923819118,0.00428761,21095.0,21094.0,1.45532499]
[1673923820153,0.00191144,21095.0,21094.0,1.45532499]
[1673923821184,1.81e-06,21095.0,21094.0,1.45532499]
[1673923821998,1.81e-06,21095.0,21094.0,1.70784334]
[1673923822839,1.81e-06,21095.0,21094.0,1.45532499]
[1673923823093,1.81e-06,21095.0,21094.0,1.01717599]
[1673923823931,1.81e-06,21095.0,21094.0,0.94872599]
[1673923825911,0.42691014,21098.0,21094.0,0.94872599]
[1673923826219,0.0766,21097.0,21094.0,0.94872599]
[1673923827268,0.07422405,21097.0,21094.0,0.948136]
[1673923828047,0.0718481,21097.0,21094.0,0.948136]
[1673923828299,0.1478481,21097.0,21094.0,0.949136]
[1673923828877,0.1478481,21097.0,21094.0,0.475068]
[1673923829141,0.31963305,21096.0,21094.0,0.475068]
[1673923829416,0.322009,21095.0,21094.0,0.475068]
[1673923829700,0.2478481,21097.0,21094.0,0.475068]
[1673923829973,0.1718481,21097.0,21093.0,0.474148]
[1673923830246,0.07362394,21096.0,21094.0,0.002]
[1673923830513,0.36257405,21097.0,21093.0,0.474148]
[1673923830781,0.0762,21094.0,21093.0,6e-05]
[1673923831073,0.398138,21094.0,21093.0,6e-05]
[1673923831330,0.49576194,21094.0,21093.0,6e-05]
[1673923832135,0.49338566,21094.0,21093.0,0.00206]
[1673923832626,0.49338566,21094.0,21093.0,6e-05]
[1673923833401,0.39338566,21094.0,21093.0,6e-05]
[1673923833677,0.46738566,21094.0,21093.0,0.00206]
[1673923833931,0.56738566,21094.0,21093.0,6e-05]
[1673923834195,0.54138566,21094.0,21093.0,0.00206]
[1673923835230,0.54138566,21094.0,21093.0,6e-05]
[1673923835231,0.39338566,21094.0,21093.0,6e-05]
[1673923835482,0.39338566,21094.0,21093.0,0.00206]
[1673923835761,10.45738566,21094.0,21093.0,0.00206]
[1673923837478,10.8120678,21094.0,21093.0,0.00206]
[1673923837736,10.6701891,21094.0,21093.0,0.00206]
[1673923838521,10.81207573,21094.0,21093.0,0.00206]
[1673923839551,10.6701891,21094.0,21093.0,0.00206]
[1673923839800,11.1442571,21094.0,21093.0,0.00206]
[1673923840090,11.1527571,21094.0,21093.0,0.002]
[1673923840332,11.29463712,21094.0,21093.0,0.002]
[1673923840624,11.1527571,21094.0,21093.0,0.002]
[1673923840860,11.91058288,21094.0,21093.0,0.002]
[1673923841080,11.69777944,21094.0,21093.0,0.002]
[1673923841596,10.67870756,21094.0,21093.0,0.002]
[1673923841888,10.81209044,21094.0,21093.0,0.002]
[1673923842942,10.59926854,21094.0,21093.0,0.002]
[1673923843730,10.81209044,21094.0,21093.0,0.002]
[1673923844523,10.81209044,21094.0,21093.0,0.07045]
[1673923844524,10.385938,21094.0,21093.0,0.07045]
[1673923844778,10.064,21094.0,21093.0,0.54454]
[1673923845602,10.064,21094.0,21093.0,1.31863]
[1673923846380,10.064,21094.0,21093.0,0.95018]
[1673923846685,10.064,21094.0,21093.0,0.47609]
[1673923846686,10.385938,21094.0,21093.0,0.47609]
[1673923847511,10.79464683,21094.0,21093.0,0.002]
[1673923847767,11.268749,21094.0,21093.0,0.002]
[1673923848072,12.5800818,21094.0,21093.0,0.002]
[1673923848334,12.52129725,21094.0,21093.0,0.002]
[1673923848605,12.16653395,21094.0,21093.0,0.002]
[1673923848864,11.90525756,21094.0,21093.0,0.002]
[1673923849121,11.7633813,21094.0,21093.0,0.002]
[1673923849656,11.76339004,21094.0,21093.0,0.002]
[1673923849950,11.2893214,21094.0,21093.0,0.002]
[1673923850211,11.14743178,21094.0,21093.0,0.002]
[1673923851531,11.43118956,21094.0,21093.0,0.002]
[1673923853634,11.50063591,21094.0,21093.0,0.002]
[1673923853906,11.43126571,21094.0,21093.0,0.002]
[1673923854136,11.21836378,21094.0,21093.0,0.002]
[1673923854408,11.81712155,21094.0,21093.0,0.002]
[1673923855172,12.00743177,21094.0,21093.0,0.002]
[1673923856794,12.52622175,21094.0,21093.0,0.002]
[1673923857577,13.00032392,21094.0,21093.0,0.002]
[1673923858364,12.52622175,21094.0,21093.0,0.002]
[1673923859076,12.81007316,21094.0,21093.0,0.002]
[1673923859324,12.17277082,21094.0,21093.0,0.002]
[1673923859583,12.05196821,21094.0,21093.0,0.002]
[1673923859848,12.33586958,21094.0,21093.0,0.002]
[1673923861313,12.80993758,21094.0,21093.0,0.002]
[1673923861839,12.52603621,21094.0,21093.0,0.002]
[1673923862549,12.810016,21094.0,21093.0,0.002]
[1673923862807,12.81001414,21094.0,21093.0,0.002]
[1673923863571,12.52603621,21094.0,21093.0,0.002]
[1673923864088,13.00013838,21094.0,21093.0,0.002]
[1673923864576,12.52603621,21094.0,21093.0,0.002]
[1673923866656,12.52603621,21094.0,21093.0,0.00057183]
[1673923866657,12.67451551,21094.0,21093.0,0.00057183]
[1673923867185,12.96721437,21094.0,21093.0,0.00057183]
[1673923867711,12.66721437,21094.0,21093.0,0.00057183]
[1673923867969,12.96721437,21094.0,21093.0,0.00057183]
[1673923868218,12.66721437,21094.0,21093.0,0.00057183]
[1673923868489,12.59111437,21094.0,21093.0,0.00057183]
[1673923868828,12.89111437,21094.0,21093.0,0.00057183]
[1673923869317,14.27427751,21094.0,21093.0,0.00057183]
[1673923869544,0.29156249,21093.0,21092.0,0.04383]
[1673923869797,2.22001327,21093.0,21092.0,0.04383]
[1673923870048,3.64539496,21093.0,21092.0,0.04383]
[1673923870316,4.59863028,21093.0,21092.0,0.04383]
[1673923870873,0.41788023,21092.0,21085.0,0.00270665]
[1673923871140,0.14196992,21086.0,21085.0,0.00270665]
[1673923871452,1.41843676,21086.0,21085.0,0.00270665]
[1673923871716,1.42693676,21086.0,21085.0,0.00270665]
[1673923871977,1.23621081,21086.0,21085.0,0.00270665]
[1673923872511,0.881286,21086.0,21085.0,0.00270665]
[1673923873373,1.07025592,21086.0,21085.0,0.00670665]
[1673923874197,0.928286,21086.0,21085.0,0.00670665]
[1673923874458,1.25731476,21086.0,21085.0,0.00670665]
[1673923874715,0.928286,21086.0,21085.0,0.00670665]
[1673923875536,1.402534,21086.0,21085.0,0.00670665]
[1673923886050,1.54450392,21086.0,21085.0,0.00670665]
[1673923886297,1.402534,21086.0,21085.0,0.00670665]
[1673923887276,1.54450392,21086.0,21085.0,0.00670665]
[1673923887533,1.402534,21086.0,21085.0,0.00670665]
[1673923891609,1.54450392,21086.0,21085.0,0.00670665]
[1673923892323,1.402534,21086.0,21085.0,0.00670665]
[1673923892843,1.402534,21086.0,21085.0,0.00661577]
[1673923897903,1.5978281,21086.0,21085.0,0.00661577]
[1673923898165,1.402534,21086.0,21085.0,0.00661577]
[1673923898422,1.54450392,21086.0,21085.0,0.00661577]
[1673923901165,1.75745881,21086.0,21085.0,0.00661577]
[1673923903426,1.54450392,21086.0,21085.0,0.00661577]
[1673923904181,1.61548889,21086.0,21085.0,0.00661577]
[1673923904710,1.89942874,21086.0,21085.0,0.00661577]
[1673923905466,2.31037779,21086.0,21085.0,0.00661577]
[1673923905717,2.0974229,21086.0,21085.0,0.00661577]
[1673923905978,2.31029272,21086.0,21085.0,0.00661577]
[1673923906496,2.45118425,21086.0,21085.0,0.00661577]
[1673923908022,2.0402352,21086.0,21085.0,0.00661577]
[1673923908290,1.68531039,21086.0,21085.0,0.00661577]
[1673923911106,0.73681439,21086.0,21085.0,0.00661577]
[1673923911362,0.41487639,21086.0,21085.0,0.00661577]
[1673923911613,1.36337239,21086.0,21085.0,0.00661577]
[1673923911883,1.68531039,21086.0,21085.0,0.00661577]
[1673923912156,2.11630082,21086.0,21085.0,0.00661577]
[1673923913597,1.68531039,21086.0,21085.0,0.00661577]
[1673923917237,1.68531039,21086.0,21085.0,0.00654277]
[1673923918545,1.60871039,21086.0,21085.0,0.00654277]
[1673923918789,1.96432477,21086.0,21085.0,0.00654277]
[1673923919860,1.60871039,21086.0,21085.0,0.00654277]
[1673923920619,1.9168454,21086.0,21085.0,0.00654277]
[1673923921131,2.41865517,21086.0,21085.0,0.00654277]
[1673923922099,2.11052016,21086.0,21085.0,0.00654277]
[1673923926197,2.03462016,21086.0,21085.0,0.00654277]
[1673923926458,2.25982016,21086.0,21085.0,0.00654277]
[1673923926972,1.72131039,21086.0,21085.0,0.00654277]
[1673923927235,1.39937239,21086.0,21085.0,0.00654277]
[1673923927508,0.91662439,21086.0,21085.0,0.10204277]
[1673923927761,0.96984938,21086.0,21085.0,0.10204277]
[1673923928023,0.96984938,21086.0,21085.0,0.00654277]
[1673923928567,0.5448245,21086.0,21085.0,0.10214977]
[1673923928862,0.40257761,21086.0,21085.0,0.24277077]
[1673923929079,0.18922848,21086.0,21085.0,0.24277077]
[1673923929344,0.047,21086.0,21085.0,0.24277077]
[1673923929597,0.047,21086.0,21085.0,0.10214977]
[1673923929856,0.047,21086.0,21085.0,0.14727077]
[1673923930111,0.047,21086.0,21085.0,0.00664977]
[1673923930369,0.047,21086.0,21085.0,0.00654277]
[1673923930815,0.047,21086.0,21085.0,0.14716377]
[1673923932447,0.047,21086.0,21085.0,0.24266377]
[1673923932938,0.047,21086.0,21085.0,0.14716377]
[1673923934421,0.047,21086.0,21085.0,0.00654277]
[1673923934689,0.047,21086.0,21085.0,0.14716377]
[1673923938478,0.047,21086.0,21085.0,0.00654277]
[1673923941322,0.047,21086.0,21085.0,1.16318277]
[1673923941620,0.047,21086.0,21085.0,1.71570377]
[1673923941621,0.04693351,21086.0,21085.0,1.71570377]
[1673923942591,0.04693351,21086.0,21085.0,0.84593377]
[1673923942858,0.04693351,21086.0,21085.0,0.73333377]
[1673923943099,0.04693351,21086.0,21085.0,0.59271277]
[1673923943612,0.04693351,21086.0,21085.0,0.73333377]
[1673923943869,0.55093761,21089.0,21085.0,0.72933377]
[1673923944148,0.55093761,21089.0,21085.0,0.58871277]
[1673923944396,0.004,21086.0,21085.0,0.63671277]
[1673923944650,0.65093761,21089.0,21085.0,0.58871277]
[1673923944893,0.14222848,21088.0,21085.0,0.59271277]
[1673923945143,0.14222848,21088.0,21085.0,0.58871277]
[1673923945650,0.004,21086.0,21085.0,0.63671277]
[1673923945898,0.65093761,21089.0,21085.0,0.58871277]
[1673923946146,0.55093761,21089.0,21085.0,0.58871277]
[1673923946914,0.044,21088.0,21085.0,0.59271277]
[1673923947172,0.55093761,21089.0,21085.0,0.58871277]
[1673923947422,0.59493761,21089.0,21085.0,0.59271277]
[1673923947982,0.69493761,21089.0,21085.0,0.59271277]
[1673923948201,0.59493761,21089.0,21085.0,0.59271277]
[1673923948960,0.39957761,21089.0,21085.0,0.59271277]
[1673923949471,0.14222848,21088.0,21085.0,0.59271277]
[1673923950738,0.82976061,21089.0,21085.0,0.58871277]
[1673923950987,0.044,21088.0,21085.0,0.59271277]
[1673923951505,0.82976061,21089.0,21085.0,0.58871277]
[1673923952513,0.044,21088.0,21085.0,0.59271277]
[1673923953466,0.14222848,21088.0,21085.0,0.58871277]
[1673923953987,0.14222848,21088.0,21085.0,0.11444277]
[1673923954209,0.18622848,21088.0,21085.0,0.11844277]
[1673923954760,0.044,21088.0,21085.0,0.11844277]
[1673923955032,0.044,21088.0,21085.0,0.41844277]
[1673923955832,0.044,21088.0,21086.0,0.140611]
[1673923956094,0.044,21088.0,21085.0,0.89271077]
[1673923956340,0.044,21088.0,21085.0,0.59271077]
[1673923956862,0.18622848,21088.0,21085.0,0.11844277]
[1673923957367,0.39957761,21088.0,21085.0,0.11844277]
[1673923959150,0.87378261,21088.0,21085.0,0.11844277]
[1673923960152,0.14222848,21087.0,21085.0,0.11844277]
[1673923960925,0.14222848,21087.0,21085.0,0.11444277]
[1673923961191,0.14322848,21087.0,21085.0,0.11444277]
[1673923961957,0.001,21087.0,21085.0,0.11444277]
[1673923962723,0.14322848,21087.0,21085.0,0.11444277]
[1673923963248,0.35647175,21087.0,21085.0,0.11444277]
[1673923963501,0.35647175,21087.0,21085.0,0.00254277]
[1673923963502,0.15072848,21086.0,21085.0,0.00254277]
[1673923963790,0.0085,21086.0,21085.0,0.00254277]
[1673923964849,0.0125,21086.0,21085.0,0.05054277]
[1673923965401,0.15472848,21086.0,21085.0,0.05054277]
[1673923965672,0.0125,21086.0,21085.0,0.05054277]
[1673923967330,0.15472848,21086.0,21085.0,0.05054277]
[1673923967584,0.15472848,21086.0,21085.0,0.16314277]
[1673923967839,0.15472848,21086.0,21085.0,0.30376277]
[1673923968090,0.15472848,21086.0,21085.0,0.16314277]
[1673923972685,0.0125,21086.0,21085.0,0.16314277]
[1673923972943,0.0125,21086.0,21085.0,0.30376377]
[1673923973208,0.0125,21086.0,21085.0,0.60376377]
[1673923973468,0.004,21086.0,21085.0,2.43005464]
[1673923973734,0.004,21086.0,21085.0,4.17459892]
[1673923974045,0.004,21086.0,21085.0,3.84354837]
[1673923974303,0.004,21086.0,21085.0,4.12670701]
[1673923974566,0.004,21086.0,21085.0,3.84354837]
[1673923975386,0.004,21086.0,21085.0,4.12650119]
[1673923976393,0.004,21086.0,21085.0,3.84354837]